bitfinex/quotes_ETHUSD_20240910
["timestamp","ask_amount","ask_price","bid_price","bid_amount"]
[1725996931245,4.20176,2380.0,2379.5,5.1269271]
[1725996931386,4.20176,2380.0,2379.5,8.40486]
[1725996931580,4.20176,2380.0,2379.4,5.043261]
[1725996931784,4.20214,2379.8,2379.3,4.2029]
[1725996931989,2.43,2380.1,2379.1,4.20313]
[1725996931990,6.48708,2379.6,2379.1,4.20313]
[1725996932309,6.48708,2379.6,2378.7,4.20382]
[1725996932310,4.20309,2379.3,2378.7,4.20382]
[1725996932456,4.30826816,2379.2,2378.7,8.40769]
[1725996932642,4.30826816,2379.2,2378.8,4.20378]
[1725996932827,0.10508816,2379.2,2378.9,4.20361]
[1725996933029,4.30818816,2379.2,2378.7,5.0482686]
[1725996933551,2.2846,2379.1,2378.7,5.0482686]
[1725996934627,0.10508815,2379.2,2378.6,0.11988733]
[1725996934628,0.10508815,2379.2,2378.9,4.20354]
[1725996934836,2.2846,2379.4,2378.9,4.20354]
[1725996934837,6.59243817,2379.4,2378.9,4.20354]
[1725996935164,2.38968817,2379.4,2378.6,0.036496]
[1725996935317,3.55,2379.3,2378.6,4.240536]
[1725996935658,4.30827757,2379.2,2378.7,4.20389]
[1725996936229,3.10509783,2379.3,2378.7,5.0483326]
[1725996936527,2.2846,2379.4,2379.0,4.20335]
[1725996936727,2.38967498,2379.4,2379.0,4.20335]
[1725996936944,2.2846,2379.4,2379.0,4.20335]
[1725996937141,2.2846,2379.4,2379.1,4.20324]
[1725996937357,0.10507361,2379.6,2379.2,4.20306]
[1725996937564,0.10507361,2379.6,2379.1,4.20324]
[1725996937870,0.10507361,2379.6,2379.3,4.20282]
[1725996938165,4.30753361,2379.6,2379.1,4.623484]
[1725996938370,0.10507361,2379.6,2379.1,4.20316]
[1725996938576,0.10507361,2379.6,2379.3,4.20289]
[1725996938726,2.4879,2379.7,2379.3,4.2028]
[1725996939063,6.63612,2380.0,2379.4,4.2859921]
[1725996939262,6.63612,2380.0,2379.6,4.20237]
[1725996940173,4.20209,2379.8,2379.3,4.2029]
[1725996940376,4.20209,2379.8,2379.2,4.28627196]
[1725996940377,0.10506348,2379.7,2379.2,4.28627196]
[1725996940539,4.30728348,2379.7,2379.2,8.48927196]
[1725996940740,4.30728348,2379.7,2379.3,4.20289]
[1725996940938,3.0,2380.3,2379.0,4.20331]
[1725996940939,6.63688,2379.5,2379.0,4.20331]
[1725996941175,0.10507666,2379.4,2379.0,4.20331]
[1725996941476,4.20309,2379.2,2378.8,4.20368]
[1725996941880,4.20329,2379.1,2378.7,4.20396]
[1725996942198,2.42999251,2379.0,2378.6,4.240516]
[1725996942355,0.10510024,2378.9,2378.6,4.240516]
[1725996942555,2.43000024,2379.0,2378.6,8.444496]
[1725996942872,6.52784,2379.3,2378.8,4.20371]
[1725996943026,6.63292741,2379.3,2378.8,4.20371]
[1725996943226,3.0,2379.5,2378.9,0.08338955]
[1725996943427,2.4938,2379.6,2378.9,0.08338955]
[1725996943428,6.69629,2379.6,2379.1,4.20317]
[1725996943673,6.69629,2379.6,2379.2,4.20308]
[1725996943839,2.4938,2379.6,2379.2,4.20297]
[1725996944054,6.69627,2379.6,2379.1,4.20325]
[1725996944241,4.20264,2379.5,2379.0,8.40669]
[1725996944464,4.20264,2379.5,2379.0,9.33904484]
[1725996944660,6.69627,2379.6,2379.0,5.13568484]
[1725996944934,2.4938,2379.6,2379.4,4.2026]
[1725996945161,2.4938,2379.9,2379.4,0.840551]
[1725996945330,0.10506352,2379.8,2379.5,4.20242]
[1725996945726,0.10506352,2379.8,2379.4,4.20271]
[1725996945954,0.10506352,2379.8,2379.4,5.043264]
[1725996946884,2.4938,2379.9,2379.5,4.20254]
[1725996947100,0.86267988,2380.4,2379.6,0.08331172]
[1725996947372,0.10503492,2380.3,2380.0,4.20167]
[1725996947584,0.10503492,2380.3,2380.1,0.420167]
[1725996947732,0.10503492,2380.3,2380.0,4.20167]
[1725996948173,2.4938,2380.5,2380.2,4.20131]
[1725996948343,0.10502583,2380.7,2380.2,4.20131]
[1725996948546,4.2009,2380.5,2379.8,4.28516394]
[1725996948746,3.10503403,2380.4,2379.4,2.45896142]
[1725996948933,3.10503403,2380.4,2379.8,4.20202]
[1725996948934,6.69503,2380.3,2379.8,4.20202]
[1725996949134,0.10504142,2380.2,2379.6,4.20223]
[1725996949367,0.10504142,2380.2,2379.5,0.73528299]
[1725996949368,4.20161,2380.1,2379.5,0.81856215]
[1725996949672,2.4938,2380.3,2379.6,4.20223]
[1725996949673,0.10505102,2380.0,2379.6,4.20223]
[1725996949835,0.86267988,2380.5,2380.3,4.20115]
[1725996950039,0.013776,2380.8,2380.6,4.20051]
[1725996950382,0.013776,2380.8,2380.7,0.84013]
[1725996950534,0.013776,2380.8,2380.7,4.20044]
[1725996950736,0.013776,2380.8,2380.7,8.40088]
[1725996950974,0.013776,2380.8,2380.7,4.20044]
[1725996951356,0.013776,2380.8,2380.7,8.40088]
[1725996951760,0.013776,2380.8,2380.7,4.20044]
[1725996951963,0.013776,2380.8,2380.7,5.04884943]
[1725996952178,0.013776,2380.8,2380.7,5.13201606]
[1725996952700,0.013776,2380.8,2380.4,8.40173]
[1725996952833,0.013776,2380.8,2380.4,8.40169]
[1725996953182,0.013776,2380.8,2380.3,0.08320653]
[1725996953364,0.013776,2380.8,2380.3,4.28417653]
[1725996953537,0.013776,2380.8,2380.3,4.20097]
[1725996954082,4.214056,2380.8,2380.3,4.20097]
[1725996954277,0.10501821,2380.7,2380.3,4.20097]
[1725996954481,0.10501821,2380.7,2380.1,4.20139]
[1725996954844,0.10501821,2380.7,2380.2,4.2845037]
[1725996954995,0.11879431,2380.8,2380.4,4.20092]
[1725996955205,0.1187942,2380.8,2380.4,4.20092]
[1725996955494,0.1187942,2380.8,2380.3,0.08322331]
[1725996955648,0.1187942,2380.8,2380.2,8.40247]
[1725996955845,0.1187942,2380.8,2380.2,5.16667434]
[1725996955846,4.3191642,2380.8,2380.2,5.16667434]
[1725996956289,4.3191642,2380.8,2380.2,4.28441344]
[1725996956499,6.69459,2380.6,2380.0,4.20152]
[1725996956701,0.1050351,2380.5,2380.0,8.40309]
[1725996956851,0.1050351,2380.5,2380.0,4.20152]
[1725996957048,0.1050351,2380.5,2379.8,4.20193]
[1725996957320,4.20124,2380.3,2379.8,4.20193]
[1725996957608,0.10504255,2380.2,2379.8,4.20193]
[1725996957953,0.10504255,2380.2,2379.8,8.40387]
[1725996958509,0.10504256,2380.3,2379.9,4.20185]
[1725996959153,2.4938,2380.1,2379.6,8.40454]
[1725996959347,2.59885098,2380.1,2379.7,4.20216]
[1725996959617,2.4938,2380.1,2379.8,4.20199]
[1725996959903,3.0,2380.3,2379.9,4.20183]
[1725996959904,3.10504524,2380.3,2379.9,4.20183]
[1725996960056,3.10504524,2380.3,2379.9,8.40359]
[1725996960255,3.10504524,2380.3,2379.9,4.20176]
[1725996960460,0.10504251,2380.2,2379.7,4.20209]
[1725996960657,3.0,2380.3,2379.6,0.08330168]
[1725996960658,3.10504524,2380.3,2380.0,4.20164]
[1725996960902,2.4059,2380.7,2380.2,8.40264]
[1725996961046,0.87645588,2380.8,2380.2,4.2012]
[1725996961047,0.11879466,2380.8,2380.2,4.2012]
[1725996961252,0.11879466,2380.8,2380.4,4.20082]
[1725996961888,0.11879466,2380.8,2380.4,4.28416404]
[1725996961889,0.013776,2380.8,2380.4,4.28416404]
[1725996962097,0.013776,2380.8,2380.5,4.20079]
[1725996962416,0.013776,2380.8,2380.7,4.20044]
[1725996962599,0.013776,2380.8,2380.7,9.240986]
[1725996963698,0.013776,2380.8,2380.5,4.20074]
[1725996963870,0.013776,2380.8,2380.5,4.20078]
[1725996965019,0.013776,2380.8,2380.1,4.20137]
[1725996965177,4.20045,2380.7,2380.2,4.2013]
[1725996965372,0.10502545,2380.6,2380.2,4.2013]
[1725996965603,0.10502545,2380.6,2380.1,4.20137]
[1725996965800,0.10502545,2380.6,2379.9,4.20171]
[1725996965801,2.2611,2380.4,2379.9,4.20171]
[1725996966009,0.10503365,2380.3,2380.0,4.20166]
[1725996966172,4.30626365,2380.3,2379.8,4.202]
[1725996966370,0.10504226,2380.2,2379.8,4.20193]
[1725996966679,0.10504226,2380.2,2379.9,4.20176]
[1725996967065,6.46208,2380.4,2380.0,4.20166]
[1725996967066,0.10504217,2380.3,2380.0,4.20166]
[1725996967271,3.0,2380.7,2380.0,4.20166]
[1725996967272,5.2805,2380.7,2380.1,4.20144]
[1725996967469,6.48095,2380.7,2380.3,4.20112]
[1725996967716,6.58597446,2380.7,2380.3,4.20112]
[1725996967915,6.58597446,2380.7,2380.1,4.20144]
[1725996967916,4.20068,2380.6,2380.1,4.20144]
[1725996968077,4.30570771,2380.6,2380.2,4.20132]
[1725996968473,2.38552766,2380.7,2380.3,4.20104]
[1725996968812,2.38552766,2380.7,2380.3,4.621144]
[1725996969025,4.214066,2380.8,2380.5,4.20069]
[1725996969026,0.013776,2380.8,2380.5,4.20069]
[1725996969322,0.013776,2380.8,2380.5,4.20071]
[1725996969816,4.214116,2380.8,2380.3,4.20107]
[1725996970048,4.30559875,2380.7,2380.1,4.28461476]
[1725996970221,4.20064,2380.6,2380.1,4.20139]
[1725996970420,2.46502946,2380.5,2380.1,4.20139]
[1725996970618,2.46502946,2380.5,2380.1,8.40279]
[1725996970828,2.46502946,2380.5,2380.1,8.4028]
[1725996971160,6.66582946,2380.5,2380.1,4.20139]
[1725996971322,4.30601231,2380.4,2379.9,8.4035]
[1725996971704,4.30601231,2380.4,2380.0,4.20164]
[1725996971900,2.46503232,2380.5,2380.1,4.20138]
[1725996972141,2.36,2380.5,2380.2,4.20119]
[1725996972547,2.36,2380.5,2380.2,4.2013]
[1725996972907,2.36,2380.5,2380.1,4.20134]
[1725996972908,2.36,2380.5,2380.1,8.40275]
[1725996973765,2.36,2380.5,2380.1,4.20134]
[1725996975145,2.36,2380.5,2380.1,8.40274]
[1725996975350,2.36,2380.5,2380.2,4.20132]
[1725996975907,4.20045,2380.7,2380.3,4.20112]
[1725996976124,0.10502294,2380.7,2380.3,4.20112]
[1725996976306,3.10502294,2380.7,2380.4,4.20092]
[1725996976535,0.10502294,2380.7,2380.4,4.20092]
[1725996976934,5.373776,2380.8,2380.6,4.20057]
[1725996976935,0.013776,2380.8,2380.6,4.20057]
[1725996977347,0.013776,2380.8,2380.5,4.20077]
[1725996978003,6.46639,2380.7,2379.8,6.60555]
[1725996978213,4.30572229,2380.6,2380.1,4.20141]
[1725996978458,0.10502229,2380.6,2380.2,4.20132]
[1725996978954,4.30566229,2380.6,2380.2,4.20132]
[1725996979109,2.2658,2380.7,2380.3,4.20107]
[1725996979314,3.013776,2380.8,2380.5,4.20063]
[1725996979510,0.013776,2380.8,2380.4,4.20096]
[1725996979853,4.31916803,2380.8,2380.4,4.20097]
[1725996980037,4.20044,2380.7,2380.2,4.2012]
[1725996980244,2.60242182,2380.6,2380.2,4.2012]
[1725996980554,4.20091,2380.5,2380.0,4.20154]
[1725996980736,0.10503455,2380.4,2380.0,4.20154]
[1725996981334,0.10503457,2380.5,2380.2,4.20131]
[1725996981537,2.60243312,2380.6,2380.2,4.20119]
[1725996981862,2.4974,2380.6,2380.3,4.2011]
[1725996982510,6.69803,2380.6,2380.1,4.20146]
[1725996982709,6.69803,2380.6,2380.1,4.20142]
[1725996982710,6.80305584,2380.6,2380.1,4.20142]
[1725996982910,2.60242584,2380.6,2379.9,0.62675704]
[1725996983156,2.4974,2380.6,2380.3,4.20106]
[1725996983727,0.118799,2380.8,2380.5,4.20071]
[1725996984057,0.013776,2380.8,2380.5,4.20071]
[1725996984550,0.013776,2380.8,2380.5,4.20077]
[1725996985457,0.013776,2380.8,2380.5,4.20078]
[1725996985751,0.013776,2380.8,2380.5,0.4284015]
[1725996985909,0.013776,2380.8,2380.2,0.0832007]
[1725996985910,4.214186,2380.8,2380.2,0.0832007]
[1725996986118,4.214186,2380.8,2380.0,2.94677189]
[1725996986119,4.20069,2380.6,2380.0,4.20164]
[1725996986415,8.50688393,2380.5,2380.0,4.20159]
[1725996986725,8.50688393,2380.5,2379.9,0.0832651]
[1725996986928,8.50688393,2380.5,2379.8,4.20192]
[1725996986929,4.20129,2380.3,2379.8,4.20192]
[1725996987148,4.20129,2380.3,2379.8,8.40386]
[1725996987149,2.42554092,2380.2,2379.8,8.40386]
[1725996987353,6.62691092,2380.2,2379.6,4.20226]
[1725996987560,0.10504098,2380.1,2379.7,4.20207]
[1725996987909,6.52187,2380.2,2379.9,4.20185]
[1725996987910,2.42554103,2380.2,2379.9,4.20185]
[1725996988140,2.3205,2380.2,2379.9,4.20176]
[1725996988460,3.10504096,2380.3,2379.9,4.20178]
[1725996988612,3.10504096,2380.3,2379.4,0.72938685]
[1725996988613,0.96771467,2380.4,2379.6,0.08327317]
[1725996988816,0.96771467,2380.6,2380.3,4.20111]
[1725996989015,0.86267988,2380.7,2380.4,4.620931]
[1725996989255,0.98147423,2380.8,2380.5,4.20069]
[1725996989452,0.11879435,2380.8,2380.5,4.20069]
[1725996989858,0.98147423,2380.8,2380.5,4.20069]
[1725996990060,0.11879435,2380.8,2380.5,4.20069]
[1725996990216,0.98147423,2380.8,2380.4,4.620931]
[1725996990418,5.06322988,2380.7,2380.2,4.20118]
[1725996990762,5.16825235,2380.7,2380.2,4.20118]
[1725996991052,5.07672588,2380.8,2380.4,4.20087]
[1725996991211,0.86267988,2380.7,2380.4,4.20087]
[1725996991418,0.86267988,2380.7,2380.4,8.40175]
[1725996992025,0.86267988,2380.7,2380.4,8.40176]
[1725996992357,0.86267988,2380.7,2380.4,4.20087]
[1725996993025,0.86267988,2380.6,2380.3,4.20114]
[1725996993352,0.86267988,2380.6,2380.3,4.28436321]
[1725996993517,0.86267988,2380.6,2380.4,4.20096]
[1725996993712,0.86267988,2380.7,2380.4,4.20096]
[1725996994220,0.86267988,2380.6,2380.4,4.20096]
[1725996994528,5.61308665,2380.8,2380.4,4.20096]
[1725996994529,0.013776,2380.8,2380.7,8.40088]
[1725996996052,0.013776,2380.8,2380.7,4.20044]
[1725996996413,0.013776,2380.8,2380.7,8.40088]
[1725996996616,0.013776,2380.8,2380.7,9.240968]
[1725996997761,0.013776,2380.8,2380.7,20.65957646]
[1725996998312,6e-06,2380.8,2380.7,31.31623256]
[1725996998550,0.034566,2381.4,2381.3,4.19938]
[1725996999386,0.034566,2381.4,2381.3,8.39876]
[1725996999856,0.034566,2381.4,2381.3,12.59814]
[1725997000419,0.034566,2381.4,2381.3,17.49200846]
[1725997000781,0.034566,2381.4,2381.3,21.69138846]
[1725997000951,0.034566,2381.4,2381.3,22.63883031]
[1725997002032,0.034566,2381.4,2381.3,13.54558185]
[1725997002229,0.034566,2381.4,2381.3,8.39876]
[1725997002463,0.034566,2381.4,2381.3,4.19938]
[1725997002970,0.034566,2381.4,2381.3,8.39876]
[1725997003273,0.034566,2381.4,2381.3,4.19938]
[1725997003453,0.034566,2381.4,2381.3,8.39876]
[1725997003622,0.034566,2381.4,2381.3,9.2469477]
[1725997008429,0.034566,2381.4,2381.3,0.8481877]
[1725997008430,0.0478648,2381.4,2381.3,0.8481877]
[1725997008709,0.0264202,2381.8,2381.7,8.39736]
[1725997008920,0.0264202,2381.8,2381.7,18.32964446]
[1725997009096,0.0264202,2381.8,2381.7,20.72764446]
[1725997010973,0.0264202,2381.8,2381.7,24.92632446]
[1725997011175,2e-07,2381.8,2381.7,24.92632446]
[1725997011520,2e-07,2381.8,2381.7,29.12500446]
[1725997012118,2e-07,2382.3,2382.2,19.87836846]
[1725997012300,2e-07,2382.3,2382.2,24.07616846]
[1725997012510,2e-07,2382.3,2382.2,19.1823]
[1725997014226,2e-07,2382.3,2382.2,14.9845]
[1725997014429,2e-07,2382.3,2382.2,17.39214585]
[1725997014896,2e-07,2382.3,2382.2,21.58994585]
[1725997015451,2e-07,2382.3,2382.2,25.78774585]
[1725997015821,2e-07,2382.3,2382.2,21.58994585]
[1725997017645,2e-07,2382.3,2382.2,17.39214585]
[1725997018373,2e-07,2382.3,2382.2,15.00104585]
[1725997019095,2e-07,2382.3,2382.2,10.80324585]
[1725997021290,2e-07,2382.3,2382.2,4.1978]
[1725997021493,2e-07,2382.3,2381.9,4.19823]
[1725997021494,0.10494407,2382.3,2381.9,4.19823]
[1725997021639,0.10494407,2382.3,2381.9,8.39645]
[1725997021833,0.10494407,2382.3,2381.9,4.19822]
[1725997022048,0.10494407,2382.3,2381.9,8.39644]
[1725997022373,0.10494407,2382.3,2381.9,4.19822]
[1725997022532,0.10494407,2382.3,2382.0,4.19805]
[1725997023292,0.10494407,2382.3,2382.0,4.19811]
[1725997023692,0.10494407,2382.3,2382.2,4.1978]
[1725997023693,2e-07,2382.3,2382.2,4.1978]
[1725997023991,2e-07,2382.3,2382.2,12.67644812]
[1725997024193,2e-07,2382.3,2382.2,8.47864812]
[1725997025480,2e-07,2382.3,2382.2,12.67644812]
[1725997028892,2e-07,2382.3,2382.2,15.07464812]
[1725997029195,2e-07,2382.3,2382.2,21.68909878]
[1725997032265,2e-07,2382.3,2382.2,15.09309878]
[1725997032681,2e-07,2382.3,2382.2,19.29089878]
[1725997033768,0.0264202,2382.8,2382.7,8.39382]
[1725997033943,0.0264202,2382.8,2382.7,9.233202]
[1725997035060,0.0264202,2382.8,2382.7,5.036292]
[1725997035419,0.0264202,2382.8,2382.7,9.31617073]
[1725997035625,2.4461,2383.0,2382.8,4.19661]
[1725997035826,2.4509642,2383.0,2382.8,4.19661]
[1725997037167,2.4509642,2383.0,2382.7,4.19691]
[1725997037372,2.4509642,2383.0,2382.8,4.19672]
[1725997038431,2.4509642,2383.0,2382.9,4.19656]
[1725997039862,2.4509642,2383.0,2382.8,4.19673]
[1725997040077,2.4509642,2383.0,2382.8,4.19665]
[1725997040943,2.55587858,2383.0,2382.6,4.19708]
[1725997041279,6.75229858,2383.0,2382.6,4.19708]
[1725997041486,2.55587858,2383.0,2382.6,8.394]
[1725997041688,2.55587858,2383.0,2382.6,4.197]
[1725997041863,2.55587858,2383.0,2382.4,4.28028165]
[1725997041864,2.55587858,2383.0,2382.5,4.19724]
[1725997042052,6.75229858,2383.0,2382.6,4.19707]
[1725997042252,2.55587858,2383.0,2382.6,4.19707]
[1725997042886,4.19688,2382.8,2382.3,4.19754]
[1725997043193,2.2865,2382.6,2382.4,4.19744]
[1725997043748,2.2865,2382.6,2382.5,4.19727]
[1725997043949,2.2865,2382.6,2382.5,8.39454]
[1725997044179,0.0048642,2382.7,2382.6,4.19709]
[1725997044350,0.0048642,2382.7,2382.6,13.51367631]
[1725997045085,0.0048642,2382.7,2382.6,9.31658631]
[1725997048349,0.0048642,2382.7,2382.6,9.233616]
[1725997048550,0.0048642,2382.7,2382.6,4.19709]
[1725997049038,2.4063642,2382.7,2382.4,4.19729]
[1725997049208,0.10493056,2382.6,2382.4,4.19729]
[1725997049417,0.10493056,2382.6,2382.2,3.96286491]
[1725997049636,2.4015,2382.5,2382.1,4.19788]
[1725997049820,0.10494288,2382.4,2382.2,4.19778]
[1725997050193,0.10494288,2382.4,2382.1,4.19787]
[1725997050424,0.10494288,2382.4,2382.1,4.19783]
[1725997050624,0.10494288,2382.4,2382.2,4.19771]
[1725997050925,0.10494288,2382.4,2382.1,8.3957]
[1725997051136,2.4015,2382.5,2382.4,4.19744]
[1725997051288,0.0048642,2382.7,2382.5,4.19718]
[1725997051825,0.0048642,2382.7,2382.5,4.19727]
[1725997052041,0.0048642,2382.7,2382.6,8.39418]
[1725997052328,0.0048642,2382.7,2382.6,8.47715891]
[1725997052543,0.0048642,2382.7,2382.6,10.14089929]
[1725997053387,0.0048642,2382.7,2382.5,4.19717]
[1725997053610,2.4015,2382.6,2382.4,4.19731]
[1725997053804,2.4015,2382.6,2382.3,4.19761]
[1725997054546,3.28270835,2382.6,2382.2,8.39546]
[1725997054694,0.10493166,2382.5,2382.0,4.198]
[1725997054897,0.88120835,2382.3,2382.0,4.198]
[1725997055242,2.4015,2382.0,2381.5,0.64768248]
[1725997055526,0.10496825,2381.9,2381.6,4.19877]
[1725997055731,0.9860385,2381.9,2381.5,4.59531649]
[1725997055895,0.9860385,2381.9,2381.4,8.39815]
[1725997056100,0.9860385,2381.9,2381.5,4.19901]
[1725997056543,0.9860385,2381.9,2381.6,4.19885]
[1725997057049,0.10496825,2381.9,2381.6,4.19885]
[1725997057230,3.28257025,2382.0,2381.6,4.19877]
[1725997057231,3.38753959,2382.0,2381.6,4.19877]
[1725997057406,2.50646934,2382.0,2381.7,4.19862]
[1725997057609,3.38753959,2382.0,2381.7,4.19862]
[1725997057841,2.50646934,2382.0,2381.7,4.19862]
[1725997058249,3.38753959,2382.0,2381.6,8.39752]
[1725997058548,2.50646934,2382.0,2381.6,4.19876]
[1725997058844,2.4015,2382.0,2381.7,4.19851]
[1725997059004,2.4015,2382.0,2381.8,4.1984]
[1725997059208,2.4015,2382.0,2381.9,8.39664]
[1725997059447,0.88107025,2382.3,2381.9,8.39664]
[1725997059448,3.40092449,2382.3,2382.0,4.19804]
[1725997060355,3.40092449,2382.3,2381.9,8.39655]
[1725997060711,3.40092449,2382.3,2382.0,4.19812]
[1725997061854,2.51985424,2382.3,2382.1,4.19796]
[1725997062021,2.51985424,2382.3,2381.7,0.08308406]
[1725997062022,3.29597025,2382.6,2382.3,4.19745]
[1725997062225,3.29597025,2382.6,2382.4,4.19734]
[1725997062226,2.4149,2382.6,2382.4,4.19734]
[1725997062552,0.99086924,2382.7,2382.4,4.19734]
[1725997062553,0.0048642,2382.7,2382.5,4.19727]
[1725997063125,0.0048642,2382.7,2382.4,4.19743]
[1725997063126,0.10979541,2382.7,2382.4,8.39479]
[1725997063413,0.0048642,2382.7,2382.5,4.19722]
[1725997064638,0.0048642,2382.7,2382.6,4.19709]
[1725997065439,0.0048642,2382.7,2382.6,9.233611]
[1725997066118,0.0048642,2382.7,2382.6,5.036521]
[1725997067040,0.0048642,2382.7,2382.6,4.19709]
[1725997068151,0.0048642,2382.7,2382.6,8.39418]
[1725997068859,0.0048642,2382.7,2382.6,4.19709]
[1725997069711,0.0048642,2382.7,2382.6,8.39418]
[1725997069913,0.0048642,2382.7,2382.6,4.19709]
[1725997070522,0.0048642,2382.7,2382.6,8.39418]
[1725997070726,0.0048642,2382.7,2382.6,9.233598]
[1725997073625,0.0048642,2382.7,2382.6,5.036508]
[1725997073830,0.0048642,2382.7,2382.6,9.3165737]
[1725997074220,0.0048642,2382.7,2382.6,5.1194837]
[1725997074424,0.0048642,2382.7,2382.6,8.39418]
[1725997074963,0.0048642,2382.7,2382.6,12.59127]
[1725997075474,0.0048642,2382.7,2382.6,8.39418]
[1725997075618,0.0048642,2382.7,2382.6,8.47713854]
[1725997075814,0.0048642,2382.7,2382.6,9.98012339]
[1725997077645,2.4073642,2382.7,2381.8,5.74358067]
[1725997077828,2.4073642,2382.7,2382.4,4.19743]
[1725997078032,3.3933649,2382.7,2382.4,4.19743]
[1725997078265,2.51229465,2382.7,2382.5,4.19716]
[1725997078567,0.0048642,2382.7,2382.6,8.39418]
[1725997078752,0.0048642,2382.7,2382.6,8.47715682]
[1725997081258,0.0048642,2382.7,2382.6,4.19709]
[1725997081465,0.0048642,2382.7,2382.6,8.47715681]
[1725997083326,0.0048642,2382.7,2382.1,2.4856]
[1725997083526,2.456,2382.6,2382.3,4.19751]
[1725997083729,0.10493075,2382.5,2381.8,8.16183418]
[1725997083936,0.0048642,2382.7,2382.5,4.19727]
[1725997083937,0.88593445,2382.7,2382.5,4.19727]
[1725997084253,0.0048642,2382.7,2382.5,4.19717]
[1725997084437,0.0048642,2382.7,2382.4,4.19741]
[1725997084637,0.0048642,2382.7,2382.4,8.39478]
[1725997084838,0.0048642,2382.7,2382.4,4.19737]
[1725997085037,0.0048642,2382.7,2382.2,4.19778]
[1725997085038,4.2018042,2382.7,2382.2,4.19778]
[1725997085275,4.19727,2382.5,2382.1,4.19797]
[1725997085470,2.456,2382.3,2382.0,4.19814]
[1725997085625,0.10495338,2382.2,2381.9,4.19831]
[1725997085830,2.456,2382.1,2381.7,4.1986]
[1725997086027,0.10496283,2382.0,2381.7,4.1986]
[1725997086459,0.10496283,2382.0,2381.8,4.19847]
[1725997086894,0.10496283,2382.0,2381.9,4.19832]
[1725997087126,3.44201939,2382.4,2382.1,4.19796]
[1725997087268,2.56094914,2382.4,2382.1,4.19796]
[1725997088611,6.75840914,2382.4,2382.0,4.19814]
[1725997088789,7.63947939,2382.4,2381.9,4.19818]
[1725997089195,4.19786,2382.2,2381.7,4.19855]
[1725997089363,6.75904335,2382.1,2381.2,3.96344418]
[1725997089567,6.75904335,2382.1,2381.5,4.19887]
[1725997089568,6.65434,2381.9,2381.5,4.19887]
[1725997089814,6.65434,2381.9,2381.4,4.19912]
[1725997089815,0.10497408,2381.8,2381.4,4.19912]
[1725997089969,0.10497408,2381.8,2381.4,5.07858744]
[1725997090345,4.30347408,2381.8,2381.4,5.07858744]
[1725997090513,0.10497494,2381.7,2381.4,4.19912]
[1725997091010,0.10497494,2381.7,2381.3,4.19921]
[1725997091306,2.456,2381.6,2381.3,4.19921]
[1725997091493,2.456,2381.6,2381.3,8.39849]
[1725997091701,2.456,2381.6,2381.3,8.39851]
[1725997092271,2.456,2381.6,2381.3,4.19921]
[1725997093568,2.456,2381.6,2381.3,8.3985]
[1725997093769,0.10497666,2381.5,2381.1,4.1996]
[1725997094379,0.10497666,2381.5,2381.2,4.19954]
[1725997094584,0.10497666,2381.5,2381.1,4.1996]
[1725997094890,2.456,2381.4,2381.2,4.19955]
[1725997095290,2.456,2381.4,2381.2,4.19956]
[1725997096928,2.456,2381.4,2381.1,4.1996]
[1725997097101,2.456,2381.4,2381.1,8.39925]
[1725997097731,0.10498765,2381.3,2381.1,4.1996]
[1725997098429,0.10498753,2381.9,2381.7,4.19858]
[1725997098600,2.35786731,2382.0,2381.7,4.19858]
[1725997098943,2.35786731,2382.0,2381.6,4.19885]
[1725997099602,0.10496788,2381.9,2381.6,4.19885]
[1725997100303,6.55601785,2382.0,2381.6,4.19885]
[1725997100505,2.35786785,2382.0,2381.6,4.19876]
[1725997100731,2.35786785,2382.0,2381.6,8.39753]
[1725997101026,2.35786785,2382.0,2381.6,4.19876]
[1725997101230,6.55602785,2382.0,2381.5,4.199]
[1725997101930,2.3464,2381.7,2381.0,4.1998]
[1725997102135,0.10498855,2381.6,2381.2,4.19946]
[1725997103028,2.3464,2381.5,2381.2,4.19946]
[1725997103238,0.10498852,2381.4,2381.2,4.19946]
[1725997103729,0.10498852,2381.4,2381.1,4.19973]
[1725997104692,0.10498852,2381.4,2381.2,4.19955]
[1725997105537,0.10498852,2381.4,2381.0,4.19981]
[1725997106623,2.3464,2381.3,2380.9,8.4233698]
[1725997106935,0.10500128,2381.2,2380.9,8.4232298]
[1725997107104,0.10500128,2381.2,2380.9,4.2232198]
[1725997109165,0.10500128,2381.2,2381.0,4.19981]
[1725997109649,0.10500128,2381.2,2380.9,4.2232198]
[1725997109809,0.10500128,2381.2,2381.0,4.19977]
[1725997110203,0.10500128,2381.2,2380.9,4.2232198]
[1725997110441,0.10500128,2381.2,2380.9,0.0232098]
[1725997110644,4.30456128,2381.2,2380.9,0.0232098]
[1725997110850,0.10500128,2381.2,2380.9,0.0232098]
[1725997111054,0.10500128,2381.2,2380.9,4.2232198]
[1725997111210,3.22747025,2381.9,2381.0,4.04661151]
[1725997111407,0.1049732,2381.8,2381.5,4.19892]
[1725997111606,2.3464,2381.9,2381.5,4.19892]
[1725997111607,2.45137607,2381.9,2381.5,4.19892]
[1725997111847,2.45137607,2381.9,2381.7,4.19866]
[1725997112057,2.45137607,2381.9,2381.6,4.19885]
[1725997112656,2.3464,2381.9,2381.7,4.19851]
[1725997112908,2.3464,2382.2,2381.9,4.19828]
[1725997113039,0.10496084,2382.1,2381.9,4.19828]
[1725997113212,0.003438,2382.4,2382.1,4.1979]
[1725997113416,0.003438,2382.4,2382.0,4.19805]
[1725997113417,0.10838716,2382.4,2382.0,4.19805]
[1725997113638,0.10838716,2382.4,2381.9,4.1983]
[1725997113831,0.10838716,2382.4,2382.0,4.19813]
[1725997114041,0.10838716,2382.4,2382.0,4.19805]
[1725997114255,0.10838716,2382.4,2382.0,4.19804]
[1725997114459,0.10838716,2382.4,2382.1,4.19786]
[1725997114630,0.10838716,2382.4,2382.2,4.19773]
[1725997114955,0.003438,2382.4,2382.3,4.19762]
[1725997115225,0.003438,2382.4,2382.2,4.19777]
[1725997115774,0.003438,2382.4,2382.1,4.19786]